Cogmind - Beta 15 @@@ ROGUE MODE // 2025.05.17 @ 12:16:23 Player: Eggpie Result: Destroyed by Y-45 Defender with Beam Rifle Performance ------------- Evolutions (2) 1000 Regions Visited (4) 800 Robots Destroyed (67) 335 Value Destroyed (1749) 1749 Prototype IDs (4) 80 Alien Tech Used (0) 0 Bonus (0) 0 TOTAL SCORE: 3964 Bonus ------- None Cogmind --------- Core Integrity 0/550 Matter 29/300 Energy 99/100 System Corruption 0% Temperature Cool (9) Movement Core (50) Location -8/Materials Parts ------- > --- POWER (1) -------- (None) > --- PROPULSION (4) --- (None) > --- UTILITY (3) ------ (None) > --- WEAPON (3) ------- (None) > --- INVENTORY (5) ---- Visual Processing Unit Medium Armor Plating Hardlight Generator Hacking Suite Peak State ------------ > --- POWER ------------ Improved Ion Engine > --- PROPULSION ------- Light Treads Light Treads Light Treads Improved Treads > --- UTILITY ---------- Cargo Storage Unit Recoil Stabilizer > --- WEAPON ----------- Heavy Assault Rifle Improved Light Cannon Improved Light Cannon > --- INVENTORY -------- Improved Ion Engine Medium Matter Pod Weight Redist. System Visual Processing Unit Improved Terrain Scanner Improved Targeting Computer Recoil Stabilizer Recoil Stabilizer Improved Power Shielding Light Armor Plating Medium Armor Plating Hardened Light Armor Plating Hardlight Generator Hacking Suite Trap Extractor Beam Rifle Grenade Launcher Rocket Launcher Datajack Plasma Cutter Hammer Mace Mace Mace Mace [Rating: 23] Favorites ----------- Power Improved Ion Engine Engine Improved Ion Engine Power Core Light Nuclear Core Propulsion Light Treads Treads Light Treads Leg Aluminum Leg Utility Cargo Storage Unit Device Recoil Stabilizer Storage Cargo Storage Unit Protection Light Armor Plating Weapon Improved Light Cannon Energy Gun Beam Rifle Ballistic Gun Assault Rifle Ballistic Cannon Improved Light Cannon Launcher Rocket Launcher Build | -11 -10 -9 -9 -8 ------- Run | Yrd Mat Mat Min Mat Slots Evolved 4 | . . 2 . 2 Power . | . . . . . Propulsion 2 | . . 2 . . Utility 1 | . . . . 1 Weapon 1 | . . . . 1 Parts Attached 29 | 6 6 7 2 8 Power 5 | 1 . 1 1 2 Engine 4 | 1 . 1 1 1 Core 1 | . . . . 1 Reactor . | . . . . . Propulsion 10 | 2 2 4 1 1 Treads 8 | . 2 4 1 1 Leg 2 | 2 . . . . Wheel . | . . . . . Hover . | . . . . . Flight . | . . . . . Utility 5 | 1 2 . . 2 Device 1 | . . . . 1 Storage 2 | 1 1 . . . Processor . | . . . . . Hackware . | . . . . . Protection 2 | . 1 . . 1 Artifact . | . . . . . Weapon 9 | 2 2 2 . 3 Energy Gun 1 | . . . . 1 Energy Cannon . | . . . . . Ballistic Gun 3 | 2 . . . 1 Ballistic Cannon 4 | . 2 2 . . Launcher 1 | . . . . 1 Special Weapon . | . . . . . Impact Weapon . | . . . . . Slashing Weapon . | . . . . . Piercing Weapon . | . . . . . Special Melee Weapon . | . . . . . Unidentified Prototypes . | . . . . . Parts Lost 17 | . . 1 4 12 Power 3 | . . . 1 2 Propulsion 8 | . . 1 2 5 Utility 1 | . . . . 1 Weapon 5 | . . . 1 4 Highest Loss Streak 12 | . . 1 2 12 To Critical Strikes . | . . . . . Average Backups 16 | . 7 18 26 21 Power 1 | . . 1 1 . Propulsion . | . . . . . Utility 5 | . 1 5 13 12 Weapon 8 | . 6 9 9 7 Tool/Special . | . . . . . Unused Backups 21 | . . 1 . 20 Power 1 | . . 1 . . Propulsion . | . . . . . Utility 12 | . . . . 12 Weapon 6 | . . . . 6 Tool/Special 2 | . . . . 2 Average Slot Usage (%) 82 | . 91 80 83 61 Engine 11 | . 14 10 11 7 Treads 29 | . 12 37 39 17 Leg 3 | . 15 . . . Storage 11 | . 14 11 11 7 Protection 1 | . 5 . . . Ballistic Gun 1 | . 3 . . 6 Ballistic Cannon 21 | . 24 21 22 11 Peak Build Rating 23 | 6 10 17 18 23 Average Rating 13 | 4 9 13 16 16 On Entrance 10 | . 6 10 17 18 Naked Turns 5 | . . . . 5 Heaviest Build 159 | 14 153 155 155 159 Greatest Support 83 | 20 40 80 83 83 Greatest Overweight (x) 52 | . 3 3 2 52 Average Overweight (x) 1 | . . 1 1 2 Largest Inventory Capacity 30 | 8 30 30 30 30 Average Capacity 25 | 6 14 30 30 25 Most Carried 28 | 4 9 28 28 25 Average Carried 16 | . 7 19 25 20 Final Capacity 30 | 8 30 30 30 5 Final Carried 28 | . 9 28 26 4 Class Distribution -------------------- 76% | Hauler-Mutant 19% | Mutant 3% | Hauler-Gunner Dominant Class ---------------- Mutant | -10/Materials Hauler-Mutant | -9/Materials Hauler-Mutant | -9/Mines Hauler-Gunner | -8/Materials Resources | -11 -10 -9 -9 -8 ----------- Run | Yrd Mat Mat Min Mat Matter Collected 1440 | 212 410 711 41 66 Remotely . | . . . . . Salvage Created 1556 | . 423 862 120 151 Parts 128 | . 38 67 13 10 Haulers Intercepted 3 | . 1 2 . . Recyclers Shooed 1 | . 1 . . . Parts Field Recycled . | . . . . . Retrieved Matter . | . . . . . Parts Self-Destructed . | . . . . . Prevented . | . . . . . Kills | -11 -10 -9 -9 -8 ------- Run | Yrd Mat Mat Min Mat Combat Hostiles Destroyed 46 | . 11 25 7 3 Guns 2 | . 1 . . 1 Cannons 43 | . 10 25 7 1 AOE 1 | . . . . 1 Classes Destroyed 12 | . 8 3 1 . Worker 1 | . . 1 . . Builder 3 | . 2 1 . . Tunneler 1 | . 1 . . . Hauler 3 | . 1 2 . . Recycler 3 | . 3 . . . Operator 3 | . 1 1 . 1 Watcher 7 | . 2 4 . 1 Swarmer 9 | . 5 . 4 . Grunt 30 | . 6 20 2 2 Brawler 1 | . . 1 . . Duelist 1 | . . . 1 . Sentry 5 | . . 4 . 1 Best Kill Streak 6 | . 6 4 4 2 Combat Bots Only 5 | . 5 4 4 1 Max Kills in Single Turn 1 | . 1 1 1 1 Gunslinging . | . . . . . Exploded 1 | . . . . 1 Melee . | . . . . . Uniques/NPCs Destroyed . | . . . . . Combat | -11 -10 -9 -9 -8 -------- Run | Yrd Mat Mat Min Mat Hostile Shots Fired 390 | . 68 103 61 158 Missed 113 | . 22 30 13 48 Hits 277 | . 46 73 48 110 Melee 1 | . . . 1 . Projectile 276 | . 46 73 47 110 Critical Strikes 4 | . . . . 4 Damage Taken 3432 | . 412 891 433 1696 Core 680 | . 40 53 27 560 Absorbed by Shields . | . . . . . Regen/Repaired (Parts) 358 | . . 358 . . Core Remaining (%) 88 | 100 84 . 80 . Volleys Fired 155 | . 54 67 20 14 Largest 3 | . 2 2 2 3 Hottest 89 | . 66 66 66 89 Shots Fired 310 | . 108 134 40 28 Gun 22 | . 10 . . 12 Cannon 286 | . 98 134 40 14 Launcher 2 | . . . . 2 Special . | . . . . . Kinetic 303 | . 108 134 40 21 Thermal 5 | . . . . 5 Explosive 2 | . . . . 2 Electromagnetic . | . . . . . Robot Hit Streak 8 | . 8 8 6 4 Robot Miss Streak 5 | . 5 5 4 4 Penetration Max . | . . . . . Secondary Targets . | . . . . . Shots Hit Robots 173 | . 57 86 15 15 Core Hits 76 | . 23 37 8 8 Critical Kills . | . . . . . Critical Parts Destroyed . | . . . . . Critical Strikes 3 | . 1 2 . . Blast 3 | . 1 2 . . Melee Attacks . | . . . . . Impact . | . . . . . Slashing . | . . . . . Piercing . | . . . . . Sneak Attacks . | . . . . . Combat Hostiles . | . . . . . Follow-up Attacks . | . . . . . Damage Inflicted 3751 | . 1239 1795 331 386 Guns 172 | . 67 . . 105 Cannons 3489 | . 1172 1795 331 191 Explosions 90 | . . . . 90 Melee . | . . . . . Ramming . | . . . . . Kinetic 3602 | . 1239 1795 331 237 Thermal 59 | . . . . 59 Explosive 90 | . . . . 90 Electromagnetic . | . . . . . Impact . | . . . . . Slashing . | . . . . . Piercing . | . . . . . Highest Corruption . | . . . . . Average Corruption . | . . . . . Corruption Purged . | . . . . . Corruption Blocked . | . . . . . Overload Shots . | . . . . . Overflow Damage 9 | . 6 3 . . Projectiles 9 | . 6 3 . . Explosions . | . . . . . Melee . | . . . . . Knockbacks 33 | . 11 16 4 2 Impact . | . . . . . Kinetic 33 | . 11 16 4 2 Secondary . | . . . . . Self-Inflicted Damage 11 | . . . . 11 Shots 1 | . . . . 1 Rammed . | . . . . . Targets Rammed . | . . . . . Kicked . | . . . . . Crushed . | . . . . . Highest Temperature 210 | . 210 111 60 124 Average Temperature 38 | . 46 27 39 43 Received Heat Transfer 1299 | . 90 450 66 693 Siege Activations . | . . . . . Martial Activations . | . . . . . Shielding Activations . | . . . . . Robots Disrupted . | . . . . . Combat Hostiles . | . . . . . Robots Corrupted . | . . . . . Combat Hostiles . | . . . . . Parts Fried . | . . . . . Impact Corruptions . | . . . . . Robots Melted . | . . . . . Combat Hostiles . | . . . . . Parts Melted . | . . . . . Heat Transferred 148 | . . . . 148 Parts Sabotaged . | . . . . . Parts Stolen . | . . . . . Parts Stripped . | . . . . . Power Chain Reactions . | . . . . . Alert | -11 -10 -9 -9 -8 ------- Run | Yrd Mat Mat Min Mat Maximum Alert Level 1 | . . 1 1 . Low Security (%) 77 | 100 100 62 96 100 Level 1 22 | . . 37 3 . Level 2 . | . . . . . Level 3 . | . . . . . Level 4 . | . . . . . Level 5 . | . . . . . High Security . | . . . . . Max Security . | . . . . . Peak Influence 307 | . 126 307 205 53 Initial 112 | . . 28 112 48 Average 139 | . 78 177 164 24 Influence Increases 1465 | . 366 796 193 110 Destroy 0b10 Robot/C 920 | . 220 500 140 60 Destroy 0b10 Robot/NC 105 | . 50 45 . 10 Destroy Leader 220 | . 46 142 20 12 Successful Hack 25 | . . 25 . . Disable Machine 75 | . 15 15 30 15 Destroy Structure 30 | . 5 9 3 13 Lose Combat Pursuer 90 | . 30 60 . . Influence Decreases 1448 | . 298 576 356 218 Entered New Map 293 | . . 40 176 77 Time Decay 1024 | . 298 526 140 60 Lost Part 131 | . . 10 40 81 Squads Dispatched 8 | . 1 6 . 1 Investigation 4 | . . 4 . . Extermination . | . . . . . Reinforcement 4 | . 1 2 . 1 Assault . | . . . . . Garrison . | . . . . . Intercept . | . . . . . Searches Triggered . | . . . . . Construction Impeded . | . . . . . Haulers Reinforced . | . . . . . Active Scanning Responses . | . . . . . Cargo Convoy Interrupts . | . . . . . Stealth | -11 -10 -9 -9 -8 --------- Run | Yrd Mat Mat Min Mat Distress Signals 6 | . 3 2 . 1 Communications Jammed . | . . . . . Distress Signals . | . . . . . Times Spotted 72 | . 19 36 7 10 Peak Tracking Total 8 | . 5 6 4 8 Tactical Retreats 5 | . 2 3 . . Traps | -11 -10 -9 -9 -8 ------- Run | Yrd Mat Mat Min Mat Traps Triggered 3 | . . 3 . . Indirectly . | . . . . . Trap Hack Attempts . | . . . . . Triggered . | . . . . . Disarmed . | . . . . . Reprogrammed . | . . . . . Reused . | . . . . . Traps Extracted . | . . . . . Installed . | . . . . . Triggered . | . . . . . Machines | -11 -10 -9 -9 -8 ---------- Run | Yrd Mat Mat Min Mat Machines Disabled 5 | . 1 1 2 1 Max in Single Turn 1 | . 1 1 1 1 Machines Repaired . | . . . . . Machines Dismantled . | . . . . . Machines Sabotaged . | . . . . . Overloaded Fab Kills . | . . . . . Hacking | -11 -10 -9 -9 -8 --------- Run | Yrd Mat Mat Min Mat Machines Accessed 11 | . 2 9 . . Terminals 6 | . 2 4 . . Fabricators . | . . . . . Repair Stations 2 | . . 2 . . Recycling Units 2 | . . 2 . . Scanalyzers 1 | . . 1 . . Garrison Access . | . . . . . Total Hacks 44 | . 8 36 . . Successful 27 | . 3 24 . . Failed 17 | . 5 12 . . Catastrophic 5 | . 2 3 . . Database Lockouts . | . . . . . Manual . | . . . . . Terminals 24 | . 8 16 . . Fabricators . | . . . . . Repair Stations 11 | . . 11 . . Recycling Units 2 | . . 2 . . Scanalyzers 7 | . . 7 . . Garrison Access . | . . . . . Terminal Hacks 10 | . 3 7 . . Prototype ID Bank 2 | . . 2 . . Scanalyzer Index 1 | . 1 . . . Locate Traps 1 | . 1 . . . Transport Status 2 | . 1 1 . . Hauler Manifests 2 | . . 2 . . Registered Components 1 | . . 1 . . Zone Layout 1 | . . 1 . . Fabricator Hacks . | . . . . . Repair Station Hacks 9 | . . 9 . . Scan Component 5 | . . 5 . . Repair 4 | . . 4 . . Recycling Unit Hacks 2 | . . 2 . . Report Inventory 2 | . . 2 . . Scanalyzer 6 | . . 6 . . Insert Component 3 | . . 3 . . Analyze 3 | . . 3 . . Garrison Access Hacks . | . . . . . Unauthorized Hacks . | . . . . . Terminals . | . . . . . Fabricators . | . . . . . Repair Stations . | . . . . . Recycling Units . | . . . . . Scanalyzers . | . . . . . Garrison Access . | . . . . . Data Cores Recovered . | . . . . . Used . | . . . . . Hacking Detections 10 | . 2 8 . . Full Trace Events 5 | . 2 3 . . Feedback Events . | . . . . . Feedback Blocked . | . . . . . Robot Schematics Acquired . | . . . . . Robots Built . | . . . . . Authchips . | . . . . . Time . | . . . . . Total Robot Build Rating . | . . . . . Part Schematics Acquired 3 | . . 3 . . Parts Built . | . . . . . Authchips . | . . . . . Time . | . . . . . Total Part Build Rating . | . . . . . Parts Repaired 4 | . . 4 . . Time 122 | . . 122 . . Parts Recycled . | . . . . . Recycled Matter . | . . . . . Retrieved Matter . | . . . . . Retrieved Components . | . . . . . Parts Scanalyzed 3 | . . 3 . . Part Schematics Acquired 3 | . . 3 . . Parts Damaged 1 | . . 1 . . Bothacking | -11 -10 -9 -9 -8 ------------ Run | Yrd Mat Mat Min Mat Used RIF Installer . | . . . . . Robots Hacked . | . . . . . Non-combat . | . . . . . Combat . | . . . . . Robot Hacks Applied . | . . . . . Relay Couplers Released . | . . . . . Fabnet Peak Effective % . | . . . . . Robots Rewired . | . . . . . Allies Hacked . | . . . . . Hacks Repelled . | . . . . . Allies | -11 -10 -9 -9 -8 -------- Run | Yrd Mat Mat Min Mat Total Allies . | . . . . . Largest Group . | . . . . . Highest-Rated Group . | . . . . . Highest-Rated Ally . | . . . . . Total Orders . | . . . . . Ally Attacks . | . . . . . Total Damage . | . . . . . Kills . | . . . . . Allies Corrupted . | . . . . . Allies Melted . | . . . . . Intel | -11 -10 -9 -9 -8 ------- Run | Yrd Mat Mat Min Mat Active Infowar (turns) . | . . . . . Robot Analysis Total . | . . . . . Derelict Logs Recovered 1 | . . . 1 . Drone Launches . | . . . . . Drone Recoveries . | . . . . . Exploration | -11 -10 -9 -9 -8 ------------- Run | Yrd Mat Mat Min Mat Turns Passed 2797 | 54 701 1606 286 150 Spaces Moved 859 | 39 248 451 80 41 Core 27 | 6 . . . 21 Treads 658 | . 107 451 80 20 Legs 174 | 33 141 . . . Wheels . | . . . . . Hover . | . . . . . Flight . | . . . . . Fastest Speed 50 | 50 120 240 240 50 Average Speed 246 | 109 208 277 264 245 Slowest Speed 2650 | 120 400 400 320 2650 Overloaded Moves . | . . . . . Propulsion Burnouts . | . . . . . Robots Hopped . | . . . . . Potential Cave-ins . | . . . . . Cave-ins Triggered . | . . . . . Exploration Rate (%) 29 | 4 48 49 39 8 Regions Visited 4 Branch Regions 1 Pre-discovered Areas 1 | . . . 1 . Known Exits Taken . | . . . . . Unknown Exits Taken 4 | 1 1 1 1 . Scrap Searched 1 | . . . 1 . Spaces Dug . | . . . . . Terrain Destroyed 27 | . 5 7 4 11 Melee . | . . . . . Projectile 17 | . 5 7 4 1 AOE 10 | . . . . 10 Terrain Rammed . | . . . . . Walls Destroyed . | . . . . . Machines Disabled . | . . . . . Actions | -11 -10 -9 -9 -8 --------- Run | Yrd Mat Mat Min Mat Total 1236 | 50 328 674 116 68 Wait 127 | . . 116 11 . Move 855 | 38 247 450 79 41 Hop . | . . . . . Pick Up 53 | 6 15 29 2 1 Fast Attach 5 | . 3 . . 2 Attach 23 | 6 1 7 4 5 Detach . | . . . . . Swap 5 | . 2 2 . 1 Drop 13 | . 6 3 . 4 Fire 155 | . 54 67 20 14 Melee . | . . . . . Ram . | . . . . . Kick . | . . . . . Crush . | . . . . . Escape Stasis . | . . . . . Rewire . | . . . . . Trap . | . . . . . Miscellaneous . | . . . . . Route ------- -11/Scrapyard -10/Materials (discovered 2 exits: *Mat x2) -9/Materials (discovered 2 exits: [*Mat] / [*Min]) -9/Mines -8/Materials History --------- Turn | Location | Event 15 | -11/Scrapyard | Discovered new exit (range 16) 55 | -11/Scrapyard | Entered Materials 257 | -10/Materials | Discovered new exit (range 6) 309 | -10/Materials | Build established: Mutant 499 | -10/Materials | Discovered new exit (range 9) 756 | -10/Materials | Entered another Materials area 756 | -9/Materials | Evolved 2 slots: Propulsion x2 842 | -9/Materials | Build established: Hauler-Mutant 1146 | -9/Materials | Repaired Imp. Light Cannon 1356 | -9/Materials | Discovered new exit (range 8) 1481 | -9/Materials | Repaired Imp. Light Cannon 1509 | -9/Materials | Repaired Lgt. Treads 1543 | -9/Materials | Repaired Imp. Ion Engine 2280 | -9/Materials | Discovered new exit (range 12) 2362 | -9/Materials | Entered Mines 2441 | -9/Mines | Learned location of Zion (-6) 2610 | -9/Mines | Discovered new exit (range 16) 2648 | -9/Mines | Entered Materials 2648 | -8/Materials | Evolved 2 slots: Utility x1, Weapon x1 2763 | -8/Materials | Core integrity fell below 50% 2787 | -8/Materials | Core integrity fell below 20% 2798 | -8/Materials | Destroyed by Y-45 Defender with Beam Rifle Last Messages --------------- 02773_ Dropped Cargo Storage Unit. 02774_ Dropped Hrd. Light Armor Plating. 02775_ T-07 Excavator is excavating. 02775_ Penetrated by Slug. 02775_ Acquired 3 matter. 02778_ U-05 Engineer lays Concrete. 02779_ T-07 Excavator is excavating. 02779_ Acquired 47 matter. 02779_ U-05 Engineer lays Concrete. 02781_ Acquired Lgt. Treads. 02782_ U-05 Engineer lays Concrete. 02783_ T-07 Excavator is excavating. 02786_ Acquired Lgt. Nuclear Core. 02787_ G-47 Trooper destroyed. 02787_ Pressure Siphon disabled. 02788_ Rocket Launcher destroyed. 02789_ Lgt. Treads destroyed. 02791_ Slug penetrates Wall. 02791_ Dropped Mace. 02793_ Dropped Lgt. Nuclear Core. Map ----- +----------------------------------------------------+ | ?????????????????????????????????????????????????? | | ?????????????????????????????????????????????????? | | ?????????????????????????????????????????????????? | | ?????????????????????????????????????????????????? | | ?????????????????????????????????????????????????? | | ?????????????????????????????????????????????????? | | ?????????????????????????????????????????????????? | | ?????????????????????????????????????????????????? | | ?????????????????????????????????????????????????? | | ?????????????????????????????????????????????????? | | ?????????????????????????????????????????????????? | | ?????????????????????????????????????????????????? | | ?????? ?#????????????????????????????????????????? | | ?? ??? ????????????????????????????????????????? | | ?? #???????????????????????????????????????? | | != ? #???????????????????????????????????????? | | != ? #???????????????????????????????????????? | | ! # #???????????????????????????????????????? | | # #???????????????????????????????????????? | | # ########????????????????????????????????? | | #????????????????????????????????? | | #??????#######???????????????????? | | """^ """ ######## #???????????????????? | | ]]^ """ """ #???????????????????? | | ]] !"" """ Y #???????????????????? | | % !/]" """ * @ #???????????????????? | | /! /!!/ % / ######## #???????????????????? | | = |!!!/%!!! % #??????## ##???????????????????? | | T##!## !]! #???????# #????????????????????? | | ###### ## #???????# #????????????????????? | | ?????######?#% #?????# #????????????????????? | | ????????????# # #?????# #????????????????????? | | ????????????# ###?????# #????????????????????? | | ????????????# #???????# #????????????????????? | | ???????????? ???????? ????????????????????? | | ???????????? ???????u ????????????????????? | | ???????????? ??????? T #???????????????????? | | ???????????# ?????? #???????????????????? | | ???????????# ##?????? #???????????????????? | | ???????????### ###??????? ? ##???????????????????? | | ??????????????+#????????? ???????????????????????? | | ?????????????? ??????????????????????????????????? | | ?????????????????????????????????????????????????? | | ?????????????????????????????????????????????????? | | ?????????????????????????????????????????????????? | | ?????????????????????????????????????????????????? | | ?????????????????????????????????????????????????? | | ?????????????????????????????????????????????????? | | ?????????????????????????????????????????????????? | | ?????????????????????????????????????????????????? | +----------------------------------------------------+ Best States ------------- Heat Dissipation 31 Energy Generation 14 Energy Capacity 265 Matter Stores 300 Matter Capacity 300 Sight Range 16 Terrain Scan Density 10 Armor Coverage 150 Evasion (%) 55 Recoil Reduction 8 Item Schematics ----------------- Hacking Suite | -9/Materials | Scanalyzed Datajack | -9/Materials | Scanalyzed Imp. Light Cannon | -9/Materials | Scanalyzed Robot Schematics ------------------ None Fabricated ------------ Nothing Repaired ---------- Imp. Light Cannon | 3% | -9/Materials Imp. Light Cannon | 2% | -9/Materials Lgt. Treads | 52% | -9/Materials Imp. Ion Engine | 58% | -9/Materials Alien Tech Used ----------------- None Achievements -------------- None Challenges ------------ None Game ------ Seed SignalAbsorptionDerivative Manual? 0 Play Time 00:21:36 Cumulative 26.5 hours Start 2025.05.17 @ 11:57:45 End 2025.05.17 @ 12:16:23 Sessions 1 Manual Loads 0 Difficulty Rogue Special Mode None Game No. 20 Rogue 14 Adventurer 0 Explorer 6 Win Type - Total 1 Types 1/0/0/0/0/0/0/0/0/0 Lore% 12 Gallery% 39 Achievement% 39 Wizard Run 0 Options --------- Layout 1 ASCII 0 Keyboard 0 Movement Mouse Keybinds 0 Fullscreen 1 Font 36/Smallcaps Map View 50x35 Zoom Use 0% Tactical HUD 1 Map Filters NONE Filters NONE Steam 1 RUN: ecb995c7-fae8-4b31-bb06-94726cafd123